[Event "33rd Croatian Junior League 2024"]
[Site "Novalja"]
[Date "2024.04.02"]
[Round "2.9"]
[White "Grgantov, Marin"]
[Black "Sundac, Ivano"]
[Result "1-0"]
[ECO "B28"]
[WhiteElo "2142"]
[BlackElo "2066"]
[Annotator "RC"]
[PlyCount "118"]
[EventDate "2024.03.28"]
[EventType "team-tourn"]
[EventCountry "CRO"]
[SourceTitle "playchess.com"]
[Source "ChessBase"]
[SourceQuality "1"]
[TimeControl "5400+30"]

1. e4 {[%emt 0:00:03]} c5 {[%emt 0:00:13]} 2. Nf3 {[%emt 0:00:18]} a6 {[%emt 0:00:06]} 3. c3 {[%emt 0:00:29]} d5 {[%emt 0:00:14]} 4. exd5 {[%emt 0:00:06]} Qxd5 {[%emt 0:00:09]} 5. Na3 {[%emt 0:00:22]} Bg4 {[%emt 0:02:20]} 6. Be2 {[%emt 0:00:09]} Nc6 {[%emt 0:01:09]} 7. O-O {[%emt 0:01:31]} Nf6 {[%emt 0:01:55]} 8. h3 {[%emt 0:00:06]} Bh5 {[%emt 0:00:32]} 9. g4 {[%emt 0:03:25]} Bg6 {[%emt 0:00:27]} 10. Nc4 {[%emt 0:00:35]} Rd8 {[%emt 0:02:28]} 11. d4 {[%emt 0:20:00]} e6 {[%emt 0:10:00]} 12. Bf4 {[%emt 0:21:33]} Qe4 {[%emt 0:02:50]} 13. Bc7 {[%emt 0:01:11]} Rd7 {[%emt 0:01:29]} 14. Bg3 {[%emt 0:12:58]} cxd4 {[%emt 0:05:36]} 15. Nfd2 {[%emt 0:35:14]} Qc2 16. Qxc2 Bxc2 17. Nb6 Rd8 18. Bc7 Bc5 19. Bxd8 Kxd8 20. Rfc1 dxc3 21. Rxc2 Nd4 22. Rd1 Nxc2 23. Na4 Nd4 24. Nxc3 Nxe2+ 25. Nxe2 Ke7 26. Nb3 Bb6 27. Nc3 Rc8 28. Kg2 Rc4 29. f3 Bc7 30. Rd2 Be5 31. Ne2 Nd5 32. Kf2 b6 33. Nbd4 Nf4 34. h4 b5 35. Nb3 Nxe2 36. Rxe2 Bc7 37. Rd2 h5 38. gxh5 Rxh4 39. Kf1 Rxh5 40. Nd4 Rh1+ 41. Ke2 Rh2+ 42. Kd3 Rxd2+ 43. Kxd2 Kd7 44. b3 Bb6 45. Ne2 Kd6 46. Kd3 Ke5 47. Nc3 f5 48. a4 bxa4 49. Nxa4 Ba7 50. Nb2 Kf4 51. Ke2 g5 52. Nd3+ Kg3 53. b4 g4 54. fxg4 fxg4 55. Nc5 e5 56. Nxa6 Kh3 57. Nc7 g3 58. Ne6 g2 59. Nf4+ Kg3 1-0

[Event "33rd Croatian Junior League 2024"]
[Site "Novalja"]
[Date "2024.04.02"]
[Round "2.10"]
[White "Tomljanovic, Ivano"]
[Black "Begic, Domagoj"]
[Result "1/2-1/2"]
[ECO "B07"]
[WhiteElo "2013"]
[BlackElo "2069"]
[Annotator "RC"]
[PlyCount "78"]
[EventDate "2024.03.28"]
[EventType "team-tourn"]
[EventCountry "CRO"]
[SourceTitle "playchess.com"]
[Source "ChessBase"]
[SourceQuality "1"]
[TimeControl "5400+30"]

1. d4 {[%emt 0:00:04]} d6 {[%emt 0:00:37]} 2. e4 {[%emt 0:00:37]} Nf6 {[%emt 0:00:26]} 3. Nc3 {[%emt 0:00:58]} c6 {[%emt 0:00:42]} 4. Nf3 {[%emt 0:00:42]} Bg4 {[%emt 0:03:26]} 5. Be3 {[%emt 0:07:34]} Nbd7 {[%emt 0:00:21]} 6. Be2 {[%emt 0:01:27]} e6 {[%emt 0:02:46]} 7. O-O {[%emt 0:00:44]} Be7 {[%emt 0:04:22]} 8. h3 {[%emt 0:08:28]} Bxf3 {[%emt 0:00:54]} 9. Bxf3 {[%emt 0:00:03]} h6 {[%emt 0:02:54]} 10. Ne2 {[%emt 0:01:32]} Nh7 {[%emt 0:06:35]} 11. Ng3 {[%emt 0:11:33]} Bg5 {[%emt 0:01:26]} 12. Qd2 {[%emt 0:00:58]} O-O {[%emt 0:04:11]} 13. Be2 {[%emt 0:00:48]} Bxe3 {[%emt 0:04:47]} 14. Qxe3 {[%emt 0:01:28]} d5 {[%emt 0:05:01]} 15. Bd3 {[%emt 0:04:39]} dxe4 {[%emt 0:00:38]} 16. Nxe4 {[%emt 0:00:21]} Nhf6 {[%emt 0:00:16]} 17. c3 {[%emt 0:02:03]} Nxe4 {[%emt 0:00:12]} 18. Bxe4 {[%emt 0:01:15]} Re8 {[%emt 0:00:23]} 19. Rad1 {[%emt 0:01:56]} Nf6 {[%emt 0:00:26]} 20. Bb1 {[%emt 0:00:36]} Qb6 {[%emt 0:00:17]} 21. Qe2 {[%emt 0:02:56]} Rad8 {[%emt 0:00:23]} 22. Rd3 {[%emt 0:02:23]} c5 {[%emt 0:00:59]} 23. Rfd1 {[%emt 0:00:55]} cxd4 {[%emt 0:00:54]} 24. Rxd4 {[%emt 0:00:24]} Rxd4 {[%emt 0:00:51]} 25. Rxd4 {[%emt 0:00:12]} Rd8 {[%emt 0:00:07]} 26. Rxd8+ {[%emt 0:04:05]} Qxd8 {[%emt 0:00:04]} 27. Bc2 {[%emt 0:00:37]} b6 {[%emt 0:00:40]} 28. Qd3 {[%emt 0:02:12]} Qxd3 {[%emt 0:00:05]} 29. Bxd3 {[%emt 0:00:02]} Kf8 {[%emt 0:00:09]} 30. Kf1 {[%emt 0:01:23]} Ke7 {[%emt 0:00:05]} 31. Ke2 {[%emt 0:00:27]} Kd6 {[%emt 0:00:03]} 32. g3 {[%emt 0:01:20]} Nd7 {[%emt 0:00:20]} 33. Ke3 {[%emt 0:00:14]} f5 {[%emt 0:00:45]} 34. f4 {[%emt 0:00:28]} Nf6 {[%emt 0:00:16]} 35. Kf3 {[%emt 0:00:39]} Nd7 {[%emt 0:01:52]} 36. Ke3 {[%emt 0:00:24]} Nc5 {[%emt 0:00:14]} 37. Bc2 {[%emt 0:00:20]} g6 {[%emt 0:03:00]} 38. g4 {[%emt 0:07:07]} Nd7 {[%emt 0:03:59]} 39. Kf3 {[%emt 0:01:11]} Nc5 {[%emt 0:06:23]} 1/2-1/2

[Event "33rd Croatian Junior League 2024"]
[Site "Novalja"]
[Date "2024.04.02"]
[Round "2.11"]
[White "Poljak, Stipe"]
[Black "Ivancic, Ivan"]
[Result "1/2-1/2"]
[ECO "D48"]
[WhiteElo "1979"]
[BlackElo "1995"]
[Annotator "RC"]
[PlyCount "49"]
[EventDate "2024.03.28"]
[EventType "team-tourn"]
[EventCountry "CRO"]
[SourceTitle "playchess.com"]
[Source "ChessBase"]
[SourceQuality "1"]
[TimeControl "5400+30"]

1. d4 {[%emt 0:00:33]} d5 {[%emt 0:00:11]} 2. c4 {[%emt 0:00:04]} e6 {[%emt 0:00:09]} 3. Nc3 {[%emt 0:00:04]} c6 {[%emt 0:00:20]} 4. Nf3 {[%emt 0:00:07]} Nf6 {[%emt 0:00:33]} 5. e3 {[%emt 0:01:22]} Nbd7 {[%emt 0:00:11]} 6. Bd3 {[%emt 0:00:35]} dxc4 {[%emt 0:00:09]} 7. Bxc4 {[%emt 0:00:03]} b5 {[%emt 0:00:12]} 8. Bd3 {[%emt 0:00:31]} a6 {[%emt 0:00:16]} 9. O-O {[%emt 0:01:05]} Bb7 {[%emt 0:00:44]} 10. Qe2 {[%emt 0:01:14]} c5 {[%emt 0:00:54]} 11. dxc5 {[%emt 0:01:37]} Bxc5 {[%emt 0:00:58]} 12. Rd1 {[%emt 0:08:20]} O-O {[%emt 0:00:34]} 13. Bc2 {[%emt 0:13:26]} Qb6 {[%emt 0:01:49]} 14. b3 {[%emt 0:04:56]} Rac8 {[%emt 0:02:31]} 15. Bb2 {[%emt 0:00:14]} Rfd8 {[%emt 0:05:07]} 16. Rac1 {[%emt 0:02:38]} h6 {[%emt 0:01:05]} 17. h3 {[%emt 0:03:10]} Qa5 {[%emt 0:09:43]} 18. Nd2 {[%emt 0:15:08]} Ba3 {[%emt 0:03:31]} 19. Bxa3 {[%emt 0:08:26]} Qxa3 {[%emt 0:00:49]} 20. Ndb1 {[%emt 0:08:30]} Qe7 {[%emt 0:05:51]} 21. Rd2 {[%emt 0:09:30]} Nb6 {[%emt 0:12:19]} 22. Rxd8+ {[%emt 0:05:50]} Rxd8 {[%emt 0:03:34]} 23. Rd1 {[%emt 0:03:40]} Rd7 {[%emt 0:08:09]} 24. Rxd7 {[%emt 0:11:27]} Qxd7 {[%emt 0:00:52]} 25. f3 {[%emt 0:00:00]} 1/2-1/2

[Event "33rd Croatian Junior League 2024"]
[Site "Novalja"]
[Date "2024.04.02"]
[Round "2.12"]
[White "Kresic, Vid"]
[Black "Pehar, Borna"]
[Result "0-1"]
[ECO "E90"]
[WhiteElo "1844"]
[BlackElo "1988"]
[Annotator "RC"]
[PlyCount "114"]
[EventDate "2024.03.28"]
[EventType "team-tourn"]
[EventCountry "CRO"]
[SourceTitle "playchess.com"]
[Source "ChessBase"]
[SourceQuality "1"]
[TimeControl "5400+30"]

1. d4 {[%emt 0:00:03]} Nf6 {[%emt 0:09:07]} 2. c4 {[%emt 0:00:30]} g6 {[%emt 0:00:07]} 3. Nc3 {[%emt 0:00:15]} Bg7 {[%emt 0:00:07]} 4. e4 {[%emt 0:00:32]} d6 {[%emt 0:00:05]} 5. Nf3 {[%emt 0:03:01]} Bg4 {[%emt 0:00:22]} 6. Be2 {[%emt 0:02:23]} Bxf3 {[%emt 0:00:17]} 7. Bxf3 {[%emt 0:00:07]} e5 {[%emt 0:00:06]} 8. dxe5 {[%emt 0:02:12]} dxe5 {[%emt 0:00:12]} 9. Qxd8+ {[%emt 0:02:11]} Kxd8 {[%emt 0:00:01]} 10. Be3 {[%emt 0:03:25]} c6 {[%emt 0:00:20]} 11. O-O {[%emt 0:01:20]} Nbd7 {[%emt 0:09:13]} 12. b4 {[%emt 0:04:45]} Kc7 {[%emt 0:05:07]} 13. a4 {[%emt 0:08:54]} Nf8 {[%emt 0:06:15]} 14. Rad1 {[%emt 0:04:46]} Ne6 {[%emt 0:01:16]} 15. Ne2 {[%emt 0:02:25]} h5 {[%emt 0:03:13]} 16. h4 {[%emt 0:04:54]} Bh6 {[%emt 0:03:37]} 17. Bxh6 {[%emt 0:00:45]} Rxh6 {[%emt 0:00:02]} 18. g3 {[%emt 0:02:01]} Rhh8 {[%emt 0:03:23]} 19. Bg2 {[%emt 0:01:26]} Rhd8 {[%emt 0:02:18]} 20. f3 {[%emt 0:07:40]} a5 {[%emt 0:05:12]} 21. b5 {[%emt 0:01:30]} Nc5 {[%emt 0:01:12]} 22. Kf2 {[%emt 0:16:35]} Nd3+ {[%emt 0:04:47]} 23. Ke3 {[%emt 0:01:52]} Nb2 {[%emt 0:01:14]} 24. b6+ {[%emt 0:08:41]} Kxb6 {[%emt 0:04:45]} 25. Rxd8 {[%emt 0:00:50]} Rxd8 {[%emt 0:00:01]} 26. Rb1 {[%emt 0:00:39]} Rd3+ {[%emt 0:00:11]} 27. Kf2 {[%emt 0:00:11]} Rb3 {[%emt 0:00:11]} 28. Kg1 {[%emt 0:02:38]} Rb4 {[%emt 0:00:28]} 29. c5+ {[%emt 0:03:45]} Kxc5 {[%emt 0:01:54]} 30. Nc1 {[%emt 0:00:12]} Kd4 {[%emt 0:06:29]} 31. Na2 {[%emt 0:03:22]} Rb6 {[%emt 0:01:31]} 32. Nc1 {[%emt 0:03:15]} Nxa4 {[%emt 0:00:53]} 33. Rxb6 {[%emt 0:00:07]} Nxb6 {[%emt 0:33:04]} 34. Nb3+ {[%emt 0:00:04]} Kc3 {[%emt 0:00:00]} 35. Nxa5 {[%emt 0:00:08]} c5 {[%emt 0:00:00]} 36. Nxb7 {[%emt 0:00:15]} c4 {[%emt 0:00:00]} 37. Bf1 {[%emt 0:00:49]} Nfd7 {[%emt 0:00:00]} 38. Nd6 {[%emt 0:04:58]} f6 {[%emt 0:00:00]} 39. g4 {[%emt 0:01:20]} Kb4 {[%emt 0:00:00]} 40. Kf2 {[%emt 0:02:02]} c3 {[%emt 0:00:00]} 41. Ke1 {[%emt 0:02:14]} Kb3 {[%emt 0:00:00]} 42. Kd1 {[%emt 0:00:16]} Kb2 {[%emt 0:00:00]} 43. Bd3 {[%emt 0:00:12]} Nc5 {[%emt 0:00:00]} 44. Bc2 {[%emt 0:00:18]} Ne6 {[%emt 0:00:00]} 45. Nb5 {[%emt 0:01:32]} Nc4 {[%emt 0:00:00]} 46. Nxc3 {[%emt 0:00:47]} Kxc3 {[%emt 0:00:00]} 47. Bb1 {[%emt 0:00:18]} hxg4 {[%emt 0:00:00]} 48. fxg4 {[%emt 0:00:09]} Nf4 {[%emt 0:00:00]} 49. Ba2 {[%emt 0:00:47]} Ne3+ {[%emt 0:00:00]} 50. Ke1 {[%emt 0:00:10]} Nxg4 {[%emt 0:00:00]} 51. Kf1 {[%emt 0:00:25]} Kd4 {[%emt 0:00:00]} 52. Kg1 {[%emt 0:00:35]} Kxe4 {[%emt 0:00:00]} 53. Kh1 {[%emt 0:00:20]} Kf3 {[%emt 0:00:00]} 54. Bc4 {[%emt 0:00:13]} Kf2 {[%emt 0:00:00]} 55. Be6 {[%emt 0:01:30]} Nxe6 {[%emt 0:00:00]} 56. h5 {[%emt 0:00:07]} Nf4 {[%emt 0:00:00]} 57. hxg6 {[%emt 0:00:20]} Nh5 {[%emt 0:00:00]} 0-1

[Event "33rd Croatian Junior League 2024"]
[Site "Novalja"]
[Date "2024.04.03"]
[Round "3.1"]
[White "Novosel, Lovro"]
[Black "Kovac, Petar"]
[Result "0-1"]
[ECO "D02"]
[WhiteElo "2348"]
[BlackElo "2173"]
[Annotator "RC"]
[PlyCount "88"]
[EventDate "2024.03.28"]
[EventType "team-tourn"]
[EventCountry "CRO"]
[SourceTitle "playchess.com"]
[Source "ChessBase"]
[SourceQuality "1"]
[TimeControl "5400+30"]

1. d4 {[%emt 0:00:02]} Nf6 {[%emt 0:00:07]} 2. Nf3 {[%emt 0:00:12]} d5 {[%emt 0:00:11]} 3. Bf4 {[%emt 0:00:10]} c5 {[%emt 0:00:26]} 4. e3 {[%emt 0:00:05]} e6 {[%emt 0:00:54]} 5. Nbd2 {[%emt 0:00:37]} Bd6 {[%emt 0:00:36]} 6. Ne5 {[%emt 0:01:33]} Qc7 {[%emt 0:03:02]} 7. c3 {[%emt 0:05:58]} Nbd7 {[%emt 0:06:05]} 8. Ndf3 {[%emt 0:02:38]} c4 {[%emt 0:03:29]} 9. Be2 {[%emt 0:18:36]} O-O {[%emt 0:03:36]} 10. O-O {[%emt 0:03:11]} Ne4 {[%emt 0:15:57]} 11. Qc2 {[%emt 0:04:00]} Nb6 {[%emt 0:18:12]} 12. Nd2 {[%emt 0:04:33]} Nxd2 {[%emt 0:04:10]} 13. Qxd2 {[%emt 0:00:17]} f6 {[%emt 0:01:27]} 14. Nf3 {[%emt 0:00:21]} Bd7 {[%emt 0:09:23]} 15. Rfe1 {[%emt 0:04:48]} Be8 {[%emt 0:05:23]} 16. Bxd6 {[%emt 0:05:34]} Qxd6 {[%emt 0:00:04]} 17. Bd1 {[%emt 0:00:06]} Bg6 {[%emt 0:07:10]} 18. h3 {[%emt 0:17:46]} Be4 {[%emt 0:03:06]} 19. Nh2 {[%emt 0:01:35]} e5 {[%emt 0:03:36]} 20. Bc2 {[%emt 0:09:20]} Bxc2 {[%emt 0:00:19]} 21. Qxc2 {[%emt 0:00:02]} e4 {[%emt 0:00:14]} 22. Nf1 {[%emt 0:01:34]} f5 {[%emt 0:01:12]} 23. a4 {[%emt 0:01:42]} a5 {[%emt 0:02:48]} 24. Reb1 {[%emt 0:02:37]} Rf7 {[%emt 0:02:06]} 25. Ra2 {[%emt 0:06:01]} Rc8 {[%emt 0:03:13]} 26. g3 {[%emt 0:01:49]} g5 {[%emt 0:01:35]} 27. Qd1 {[%emt 0:00:05]} Qg6 {[%emt 0:00:36]} 28. b4 {[%emt 0:01:04]} cxb3 {[%emt 0:00:15]} 29. Rxb3 {[%emt 0:00:01]} f4 {[%emt 0:01:57]} 30. Qg4 {[%emt 0:00:50]} Rc6 {[%emt 0:00:43]} 31. exf4 {[%emt 0:03:30]} gxf4 {[%emt 0:00:13]} 32. Qxg6+ {[%emt 0:00:11]} Rxg6 {[%emt 0:00:17]} 33. Rab2 {[%emt 0:02:08]} Nc4 {[%emt 0:00:47]} 34. Re2 {[%emt 0:00:29]} fxg3 {[%emt 0:01:24]} 35. fxg3 {[%emt 0:00:12]} Rb6 {[%emt 0:01:42]} 36. Rxb6 {[%emt 0:03:59]} Nxb6 {[%emt 0:00:01]} 37. Ne3 {[%emt 0:00:36]} Rf3 {[%emt 0:00:50]} 38. Kg2 {[%emt 0:00:09]} Nxa4 {[%emt 0:00:33]} 39. Nxd5 {[%emt 0:01:00]} Nxc3 {[%emt 0:00:05]} 40. Nxc3 {[%emt 0:00:33]} Rxc3 {[%emt 0:00:03]} 41. Rb2 {[%emt 0:00:04]} a4 {[%emt 0:00:55]} 42. Rxb7 {[%emt 0:00:06]} Rc2+ {[%emt 0:00:09]} 43. Kf1 {[%emt 0:01:11]} a3 {[%emt 0:00:06]} 44. Rb8+ {[%emt 0:00:44]} Kf7 {[%emt 0:00:09]} 0-1

[Event "33rd Croatian Junior League 2024"]
[Site "Novalja"]
[Date "2024.04.03"]
[Round "3.2"]
[White "Konjevic, Nikola"]
[Black "Karlusic, Luka"]
[Result "1/2-1/2"]
[ECO "B12"]
[WhiteElo "2056"]
[BlackElo "2232"]
[Annotator "RC"]
[PlyCount "48"]
[EventDate "2024.03.28"]
[EventType "team-tourn"]
[EventCountry "CRO"]
[SourceTitle "playchess.com"]
[Source "ChessBase"]
[SourceQuality "1"]
[TimeControl "5400+30"]

1. e4 {[%emt 0:00:05]} c6 {[%emt 0:00:13]} 2. d4 {[%emt 0:00:09]} d5 {[%emt 0:00:08]} 3. e5 {[%emt 0:00:24]} c5 {[%emt 0:00:24]} 4. dxc5 {[%emt 0:00:12]} Nc6 {[%emt 0:00:13]} 5. f4 {[%emt 0:00:57]} Nh6 {[%emt 0:00:30]} 6. Nf3 {[%emt 0:10:19]} Bg4 {[%emt 0:00:33]} 7. Be3 {[%emt 0:02:52]} d4 {[%emt 0:02:03]} 8. Bf2 {[%emt 0:12:12]} e6 {[%emt 0:02:51]} 9. Bd3 {[%emt 0:14:05]} Bxc5 {[%emt 0:06:59]} 10. Nbd2 {[%emt 0:03:50]} O-O {[%emt 0:15:21]} 11. O-O {[%emt 0:11:07]} Bb6 {[%emt 0:05:44]} 12. h3 {[%emt 0:03:02]} Bf5 {[%emt 0:06:10]} 13. Ne4 {[%emt 0:00:11]} Nb4 {[%emt 0:06:32]} 14. Nd6 {[%emt 0:01:35]} Bxd3 {[%emt 0:05:20]} 15. cxd3 {[%emt 0:00:03]} Nf5 {[%emt 0:02:17]} 16. Nxf5 {[%emt 0:03:43]} exf5 {[%emt 0:00:07]} 17. Qd2 {[%emt 0:02:06]} Nc6 {[%emt 0:02:38]} 18. b4 {[%emt 0:06:36]} Qd5 {[%emt 0:05:24]} 19. Rab1 {[%emt 0:01:24]} a5 {[%emt 0:08:13]} 20. bxa5 {[%emt 0:02:49]} Bxa5 {[%emt 0:01:15]} 21. Qb2 {[%emt 0:01:15]} Bc3 {[%emt 0:00:00]} 22. Qxb7 {[%emt 0:00:30]} Rfb8 {[%emt 0:10:26]} 23. Qc7 {[%emt 0:00:00]} Rc8 {[%emt 0:00:13]} 24. Qd6 {[%emt 0:07:31]} Qxd6 {[%emt 0:18:56]} 1/2-1/2

[Event "33rd Croatian Junior League 2024"]
[Site "Novalja"]
[Date "2024.04.03"]
[Round "3.3"]
[White "Mazuran, Gabrijel"]
[Black "Car, Filip"]
[Result "1-0"]
[ECO "E71"]
[WhiteElo "2054"]
[BlackElo "2106"]
[Annotator "RC"]
[PlyCount "103"]
[EventDate "2024.03.28"]
[EventType "team-tourn"]
[EventCountry "CRO"]
[SourceTitle "playchess.com"]
[Source "ChessBase"]
[SourceQuality "1"]
[TimeControl "5400+30"]

1. d4 {[%emt 0:00:02]} Nf6 {[%emt 0:00:09]} 2. c4 {[%emt 0:00:07]} g6 {[%emt 0:00:19]} 3. Nc3 {[%emt 0:00:06]} Bg7 {[%emt 0:00:10]} 4. e4 {[%emt 0:00:07]} d6 {[%emt 0:00:12]} 5. h3 {[%emt 0:00:17]} O-O {[%emt 0:00:10]} 6. Be3 {[%emt 0:00:04]} e5 {[%emt 0:00:08]} 7. d5 {[%emt 0:00:06]} Na6 {[%emt 0:00:10]} 8. g4 {[%emt 0:02:03]} Nc5 {[%emt 0:00:06]} 9. f3 {[%emt 0:00:24]} a5 {[%emt 0:00:35]} 10. Nge2 {[%emt 0:00:24]} c6 {[%emt 0:00:41]} 11. Ng3 {[%emt 0:00:32]} cxd5 {[%emt 0:08:36]} 12. cxd5 {[%emt 0:05:22]} Bd7 {[%emt 0:01:51]} 13. h4 {[%emt 0:13:15]} h5 {[%emt 0:07:40]} 14. gxh5 {[%emt 0:02:10]} Nxh5 {[%emt 0:00:15]} 15. Nxh5 {[%emt 0:00:20]} gxh5 {[%emt 0:00:01]} 16. Qd2 {[%emt 0:00:45]} Rc8 {[%emt 0:14:05]} 17. Qg2 {[%emt 0:07:03]} f5 {[%emt 0:18:35]} 18. Qg5 {[%emt 0:32:04]} Qb6 {[%emt 0:08:03]} 19. Rh2 {[%emt 0:10:10]} fxe4 {[%emt 0:04:23]} 20. fxe4 {[%emt 0:07:33]} Rf3 {[%emt 0:03:00]} 21. Rc2 {[%emt 0:07:01]} Rcf8 {[%emt 0:15:06]} 22. Be2 {[%emt 0:02:52]} Rh3 {[%emt 0:00:06]} 23. O-O-O {[%emt 0:01:21]} Rxe3 {[%emt 0:01:30]} 24. Rg1 {[%emt 0:04:29]} Bg4 {[%emt 0:06:33]} 25. Bxg4 {[%emt 0:00:33]} Rxc3 {[%emt 0:04:28]} 26. Rxc3 {[%emt 0:03:47]} Nd3+ {[%emt 0:02:52]} 27. Kc2 {[%emt 0:00:30]} hxg4 {[%emt 0:01:18]} 28. Qxg4 {[%emt 0:00:30]} Qf2+ {[%emt 0:02:52]} 29. Kxd3 {[%emt 0:00:30]} Rf3+ {[%emt 0:00:01]} 30. Kc4 {[%emt 0:00:27]} b5+ {[%emt 0:00:47]} 31. Kxb5 {[%emt 0:00:33]} Qxb2+ {[%emt 0:00:14]} 32. Rb3 {[%emt 0:00:31]} Rxb3+ {[%emt 0:00:38]} 33. axb3 {[%emt 0:00:04]} Qxb3+ {[%emt 0:00:06]} 34. Kc6 {[%emt 0:00:53]} Qc4+ {[%emt 0:00:36]} 35. Kxd6 {[%emt 0:00:19]} Qa6+ {[%emt 0:01:06]} 36. Kc5 {[%emt 0:00:40]} Qa7+ {[%emt 0:00:08]} 37. Kc4 {[%emt 0:00:33]} Qd4+ {[%emt 0:00:14]} 38. Kb5 {[%emt 0:00:26]} Qb4+ {[%emt 0:00:15]} 39. Ka6 {[%emt 0:00:26]} Qc4+ {[%emt 0:00:23]} 40. Kxa5 {[%emt 0:00:32]} Qa2+ {[%emt 0:00:41]} 41. Kb4 {[%emt 0:00:32]} Qb2+ {[%emt 0:00:02]} 42. Kc5 {[%emt 0:00:30]} Qc3+ {[%emt 0:01:02]} 43. Kd6 {[%emt 0:00:19]} Qb4+ {[%emt 0:00:11]} 44. Ke6 {[%emt 0:00:44]} Qb6+ {[%emt 0:00:09]} 45. Ke7 {[%emt 0:00:29]} Qf6+ {[%emt 0:01:58]} 46. Kd7 {[%emt 0:00:30]} Qf7+ {[%emt 0:00:08]} 47. Kc6 {[%emt 0:00:07]} Qe8+ {[%emt 0:00:13]} 48. Qd7 {[%emt 0:00:27]} Qa8+ {[%emt 0:00:01]} 49. Qb7 {[%emt 0:00:32]} Qa4+ {[%emt 0:00:22]} 50. Kc7 {[%emt 0:00:56]} Qa5+ {[%emt 0:01:16]} 51. Kb8 {[%emt 0:00:11]} Qd8+ {[%emt 0:00:20]} 52. Qc8 {[%emt 0:00:02]} 1-0

[Event "33rd Croatian Junior League 2024"]
[Site "Novalja"]
[Date "2024.04.03"]
[Round "3.4"]
[White "Mandaric, Fran"]
[Black "Simunkovic, Bartol"]
[Result "0-1"]
[ECO "B52"]
[WhiteElo "1933"]
[BlackElo "1885"]
[Annotator "NA RC"]
[PlyCount "102"]
[EventDate "2024.03.28"]
[EventType "team-tourn"]
[EventCountry "CRO"]
[SourceTitle "playchess.com"]
[Source "ChessBase"]
[SourceQuality "1"]
[TimeControl "5400+30"]

1. e4 {[%emt 0:00:05]} c5 {[%emt 0:00:06]} 2. Nf3 {[%emt 0:00:08]} d6 {[%emt 0:00:06]} 3. Bb5+ {[%emt 0:01:36]} Bd7 {[%emt 0:01:17]} 4. Bxd7+ {[%emt 0:00:09]} Qxd7 {[%emt 0:00:16]} 5. c4 {[%emt 0:00:07]} Nc6 {[%emt 0:00:33]} 6. O-O {[%emt 0:01:04]} g6 {[%emt 0:01:05]} 7. Nc3 {[%emt 0:02:03]} Bg7 {[%emt 0:00:11]} 8. d3 {[%emt 0:00:57]} Nf6 {[%emt 0:00:51]} 9. Ne1 {[%emt 0:07:05]} Nd4 {[%emt 0:10:45]} 10. Nc2 {[%emt 0:04:43]} Nxc2 {[%emt 0:03:16]} 11. Qxc2 {[%emt 0:00:02]} O-O {[%emt 0:00:45]} 12. f4 {[%emt 0:00:19]} e6 {[%emt 0:01:22]} 13. h3 {[%emt 0:20:10]} Ne8 {[%emt 0:02:26]} 14. Be3 {[%emt 0:09:36]} Nc7 {[%emt 0:03:45]} 15. Rae1 {[%emt 0:01:18]} f5 {[%emt 0:05:09]} 16. Qf2 {[%emt 0:04:34]} Qc6 {[%emt 0:02:48]} 17. Qf3 {[%emt 0:22:39]} b6 {[%emt 0:11:28]} 18. g4 {[%emt 0:05:13]} Rad8 {[%emt 0:06:33]} 19. Bf2 {[%emt 0:04:08]} e5 {[%emt 0:08:10]} 20. Bh4 {[%emt 0:02:34]} Rd7 {[%emt 0:07:42]} 21. gxf5 {[%emt 0:01:29]} gxf5 {[%emt 0:00:55]} 22. fxe5 {[%emt 0:02:58]} fxe4 {[%emt 0:00:47]} 23. Qg2 {[%emt 0:02:42]} Rxf1+ {[%emt 0:03:50]} 24. Rxf1 {[%emt 0:00:13]} dxe5 {[%emt 0:00:18]} 25. Nxe4 {[%emt 0:00:30]} Qg6 {[%emt 0:00:45]} 26. Qxg6 {[%emt 0:04:34]} hxg6 {[%emt 0:00:02]} 27. Nf6+ {[%emt 0:01:33]} Bxf6 {[%emt 0:00:05]} 28. Rxf6 {[%emt 0:00:20]} Kg7 {[%emt 0:01:18]} 29. Rc6 {[%emt 0:00:15]} Kf7 {[%emt 0:00:58]} 30. Bg3 {[%emt 0:01:29]} Ne6 {[%emt 0:00:18]} 31. Bxe5 {[%emt 0:00:21]} Rxd3 {[%emt 0:00:05]} 32. Rd6 {[%emt 0:00:42]} Re3 {[%emt 0:01:33]} 33. Bc3 {[%emt 0:00:42]} Ke7 {[%emt 0:00:07]} 34. Rd2 {[%emt 0:00:36]} Rxh3 {[%emt 0:01:34]} 35. Re2 {[%emt 0:00:31]} g5 {[%emt 0:01:48]} 36. Rh2 {[%emt 0:00:29]} Rxh2 {[%emt 0:01:09]} 37. Kxh2 {[%emt 0:00:01]} Nd4 {[%emt 0:00:24]} 38. Kh3 {[%emt 0:00:33]} Kf6 {[%emt 0:01:39]} 39. Kg4 {[%emt 0:00:07]} Kg6 {[%emt 0:00:02]} 40. Bd2 {[%emt 0:00:34]} Nc6 {[%emt 0:00:03]} 41. Bc3 {[%emt 0:00:25]} Nb8 {[%emt 0:00:48]} 42. Be5 {[%emt 0:00:55]} Nd7 {[%emt 0:00:04]} 43. Bc7 {[%emt 0:00:28]} Nf6+ {[%emt 0:00:16]} 44. Kf3 {[%emt 0:00:50]} Kf5 {[%emt 0:00:06]} 45. Bb8 {[%emt 0:00:30]} a6 {[%emt 0:01:01]} 46. Bc7 {[%emt 0:00:38]} Nd7 {[%emt 0:00:03]} 47. b3 {[%emt 0:00:24]} b5 {[%emt 0:00:53]} 48. cxb5 {[%emt 0:00:27]} axb5 {[%emt 0:00:06]} 49. a4 {[%emt 0:00:22]} c4 {[%emt 0:00:23]} 50. bxc4 {[%emt 0:00:44]} bxa4 {[%emt 0:00:05]} 51. Bd6 {[%emt 0:00:34]} Ne5+ {[%emt 0:00:07]} 0-1